fUST/lending_fUST_20250929
["ID","MTS","AMOUNT","RATE_DAILY","PERIOD"]
[388360395,1759122639957,-151.0,0.00027,7]
[388360396,1759122639967,-296.382196,0.00027,7]
[388360397,1759122639976,-151.0,0.00027,7]
[388360398,1759122639986,-151.0,0.00027,7]
[388360399,1759122639996,-151.0,0.00027,7]
[388360400,1759122640005,-151.0,0.00027,7]
[388360401,1759122640015,-151.0,0.00027,7]
[388360402,1759122640024,-151.0,0.00027,7]
[388360403,1759122640033,-151.0,0.00027,7]
[388360404,1759122640042,-151.0,0.00027,7]
[388360405,1759122640051,-268.258963,0.00027,7]
[388360406,1759122640061,-151.0,0.00027,7]
[388360407,1759122640070,-599.833984,0.00027,7]
[388360408,1759122640080,-599.833984,0.00027,7]
[388360409,1759122640090,-599.833984,0.00027,7]
[388360410,1759122640099,-599.833984,0.00027,7]
[388360411,1759122640109,-599.833984,0.00027,7]
[388360412,1759122640119,-599.833984,0.00027,7]
[388360413,1759122640129,-599.833984,0.00027,7]
[388360414,1759122640140,-599.833977,0.00027,7]
[388360415,1759122640152,-153.293697,0.00027,7]
[388360416,1759122640168,-4232.560743,0.00027,7]
[388360417,1759122640179,-4232.560743,0.00027,7]
[388360418,1759122640188,-4232.560743,0.00027,7]
[388360419,1759122640198,-4232.560743,0.00027,7]
[388360420,1759122640213,-4232.560743,0.00027,7]
[388360421,1759122640223,-151.0,0.00027,7]
[388360422,1759122640235,-4232.560743,0.00027,7]
[388360423,1759122640245,-238.603336,0.00027,7]
[388360424,1759122640254,-4232.560743,0.00027,7]
[388360425,1759122640264,-4232.560734,0.00027,7]
[388360426,1759122640273,-151.0,0.00027,7]
[388360427,1759122640283,-151.0,0.00027,7]
[388360428,1759122640292,-151.0,0.00027,7]
[388360429,1759122640301,-151.0,0.00027,7]
[388360430,1759122640311,-151.0,0.00027,7]
[388360431,1759122640320,-151.0,0.00027,7]
[388360432,1759122640329,-151.0,0.00027,7]
[388360433,1759122640339,-151.0,0.00027,7]
[388360434,1759122640348,-282.174371,0.00027,7]
[388360435,1759122640357,-313.571785,0.00027,7]
[388360436,1759122640367,-313.571785,0.00027,7]
[388360437,1759122640376,-313.571785,0.00027,7]
[388360438,1759122640385,-313.571785,0.00027,7]
[388360439,1759122640394,-313.571785,0.00027,7]
[388360440,1759122640403,-313.571785,0.00027,7]
[388360441,1759122640413,-313.571785,0.00027,7]
[388360442,1759122640422,-313.57178,0.00027,7]
[388360443,1759122640432,-217.620255,0.00027,7]
[388360444,1759122640442,-217.620255,0.00027,7]
[388360445,1759122640451,-217.620255,0.00027,7]
[388360446,1759122640460,-217.620255,0.00027,7]
[388360447,1759122640515,-217.620255,0.00027,7]
[388360448,1759122640524,-217.620255,0.00027,7]
[388360449,1759122640533,-208.0,0.00027068,14]
[388360450,1759122640543,-1270.53465916,0.00027186,2]
[388360451,1759122640554,-2599.81032682,0.00027187,2]
[388360452,1759122640564,-924.6438827,0.00027197,2]
[388360453,1759122640573,-151.0,0.00027197,7]
[388360454,1759122640582,-151.0,0.00027197,7]
[388360455,1759122640592,-151.0,0.00027197,7]
[388360456,1759122640601,-151.0,0.00027197,7]
[388360457,1759122640611,-265.019963,0.00027197,7]
[388360458,1759122640620,-151.0,0.00027197,7]
[388360459,1759122640630,-151.0,0.00027197,7]
[388360460,1759122640639,-151.0,0.00027197,7]
[388360461,1759122640649,-151.0,0.00027197,7]
[388360462,1759122640658,-207.972151,0.00027197,7]
[388360463,1759122640668,-207.972151,0.00027197,7]
[388360464,1759122640677,-207.972151,0.00027197,7]
[388360465,1759122640686,-207.972151,0.00027197,7]
[388360466,1759122640696,-151.0,0.00027197,7]
[388360467,1759122640706,-153.732048,0.00027197,7]
[388360468,1759122640715,-151.0,0.00027197,7]
[388360469,1759122640725,-151.0,0.00027197,7]
[388360471,1759122640735,-151.0,0.00027197,7]
[388360472,1759122640745,-151.0,0.00027197,7]
[388360473,1759122640754,-212.927782,0.00027197,7]
[388360474,1759122640763,-212.927782,0.00027197,7]
[388360475,1759122640773,-151.0,0.00027197,7]
[388360476,1759122640783,-201.690415,0.00027197,7]
[388360477,1759122640792,-212.927782,0.00027197,7]
[388360478,1759122640802,-201.690415,0.00027197,7]
[388360479,1759122640812,-212.927782,0.00027197,7]
[388360480,1759122640821,-201.690415,0.00027197,7]
[388360481,1759122640830,-212.927782,0.00027197,7]
[388360482,1759122640839,-201.690415,0.00027197,7]
[388360483,1759122640848,-212.927782,0.00027197,7]
[388360484,1759122640857,-201.690415,0.00027197,7]
[388360485,1759122640867,-212.927782,0.00027197,7]
[388360486,1759122640876,-212.927782,0.00027197,7]
[388360487,1759122640885,-201.690415,0.00027197,7]
[388360488,1759122640894,-201.690415,0.00027197,7]
[388360489,1759122640903,-201.690415,0.00027197,7]
[388360490,1759122640913,-151.0,0.00027197,7]
[388360491,1759122640922,-13423.2119552,0.00027197,2]
[388360492,1759122640931,-188.939603,0.00027197,7]
[388360493,1759122640941,-188.939603,0.00027197,7]
[388360494,1759122640950,-188.939603,0.00027197,7]
[388360495,1759122640959,-188.939603,0.00027197,7]
[388360496,1759122640969,-188.939603,0.00027197,7]
[388360497,1759122640980,-188.939603,0.00027197,7]
[388360498,1759122640989,-188.939603,0.00027197,7]
[388360499,1759122640999,-188.939603,0.00027197,7]
[388360500,1759122641008,-151.0,0.00027197,7]
[388360501,1759122641018,-151.0,0.00027197,7]
[388360502,1759122641027,-151.0,0.00027197,7]
[388360503,1759122641036,-151.0,0.00027197,7]
[388360504,1759122641046,-151.0,0.00027197,7]
[388360505,1759122641055,-151.0,0.00027197,7]
[388360506,1759122641064,-151.0,0.00027197,7]
[388360507,1759122641074,-277.988155,0.00027197,7]
[388360508,1759122641084,-151.0,0.00027197,7]
[388360509,1759122641093,-151.0,0.00027197,7]
[388360510,1759122641103,-151.0,0.00027197,7]
[388360511,1759122641113,-151.0,0.00027197,7]
[388360512,1759122641122,-160.0,0.00027197,2]
[388360513,1759122641132,-151.0,0.00027197,7]
[388360514,1759122641142,-151.0,0.00027197,7]
[388360515,1759122641152,-3227.3222326,0.00027197,2]
[388360516,1759122641161,-151.0,0.00027197,7]
[388360517,1759122641171,-151.0,0.00027197,7]
[388360518,1759122641180,-164.242573,0.00027197,7]
[388360519,1759122641190,-151.0,0.00027197,7]
[388360520,1759122641200,-151.0,0.00027197,7]
[388360521,1759122641209,-233.87608454,0.00027197,7]
[388360522,1759122641219,-151.0,0.00027197,7]
[388360523,1759122641229,-151.0,0.00027197,7]
[388360524,1759122641239,-151.0,0.00027197,7]
[388360525,1759122641248,-151.0,0.00027197,7]
[388360526,1759122641257,-151.0,0.00027197,7]
[388360527,1759122641267,-151.0,0.00027197,7]
[388360528,1759122641276,-151.0,0.00027197,7]
[388360529,1759122641286,-151.0,0.00027197,7]
[388360530,1759122641295,-151.0,0.00027197,2]
[388360531,1759122641304,-151.0,0.00027197,7]
[388360532,1759122641313,-168.0,0.00027256,2]
[388360533,1759122641323,-432.0,0.00027264,2]
[388360534,1759122641332,-198.0,0.00027264,2]
[388360535,1759122641341,-168.0,0.00027284,2]
[388360536,1759122641351,-162.29,0.0002729,16]
[388360537,1759122641360,-1000.0,0.00027296,2]
[388360538,1759122641369,-1000.0,0.00027297,2]
[388360539,1759122641379,-151.528318,0.00027297,7]
[388360540,1759122641388,-151.0,0.00027297,7]
[388360541,1759122641397,-151.0,0.00027297,7]
[388360542,1759122641407,-151.0,0.00027297,7]
[388360543,1759122641415,-212.927782,0.00027297,7]
[388360544,1759122641425,-151.0,0.00027297,7]
[388360545,1759122641434,-201.690415,0.00027297,7]
[388360546,1759122641443,-212.927782,0.00027297,7]
[388360547,1759122641452,-201.690415,0.00027297,7]
[388360548,1759122641462,-212.927782,0.00027297,7]
[388360549,1759122641472,-212.927782,0.00027297,7]
[388360550,1759122641485,-201.690415,0.00027297,7]
[388360551,1759122641494,-201.690415,0.00027297,7]
[388360552,1759122641503,-188.939603,0.00027297,7]
[388360553,1759122641513,-188.939603,0.00027297,7]
[388360554,1759122641523,-188.939603,0.00027297,7]
[388360555,1759122641532,-188.939608,0.00027297,7]
[388360556,1759122641541,-159.195477,0.00027297,7]
[388360557,1759122641550,-151.0,0.00027297,7]
[388360558,1759122641561,-151.0,0.00027297,7]
[388360559,1759122641570,-151.0,0.00027297,7]
[388360560,1759122641579,-151.0,0.00027297,7]
[388360561,1759122641588,-178.734315,0.00027297,7]
[388360562,1759122641597,-151.0,0.000273,13]
[388360563,1759122641607,-151.0,0.000273,16]
[388360564,1759122641616,-151.0,0.00027309,7]
[388360565,1759122641625,-264.083612,0.00027309,7]
[388360566,1759122641634,-207.972151,0.00027309,7]
[388360567,1759122641643,-207.972151,0.00027309,7]
[388360568,1759122641652,-207.972151,0.00027309,7]
[388360569,1759122641661,-207.972151,0.00027309,7]
[388360570,1759122641671,-151.0,0.00027319,7]
[388360571,1759122641680,-151.0,0.00027319,7]
[388360572,1759122641689,-151.0,0.00027319,7]
[388360573,1759122641699,-151.0,0.00027319,7]
[388360574,1759122641709,-294.793592,0.00027319,7]
[388360575,1759122641718,-212.927782,0.00027319,7]
[388360576,1759122641728,-151.0,0.00027319,7]
[388360577,1759122641737,-201.690415,0.00027319,7]
[388360578,1759122641747,-212.927782,0.00027319,7]
[388360579,1759122641756,-201.690415,0.00027319,7]
[388360580,1759122641765,-212.927782,0.00027319,7]
[388360581,1759122641774,-212.927782,0.00027319,7]
[388360582,1759122641783,-201.690415,0.00027319,7]
[388360583,1759122641792,-201.690415,0.00027319,7]
[388360584,1759122641802,-1299.90516341,0.00027377,2]
[388360585,1759122641811,-151.0,0.00027377,7]
[388360586,1759122641822,-207.972151,0.00027377,7]
[388360587,1759122641831,-207.972151,0.00027377,7]
[388360588,1759122641840,-207.972151,0.00027377,7]
[388360589,1759122641850,-207.972151,0.00027377,7]
[388360590,1759122641859,-212.927782,0.00027386,7]
[388360591,1759122641868,-201.690415,0.00027386,7]
[388360592,1759122641878,-212.927782,0.00027386,7]
[388360593,1759122641887,-201.690415,0.00027386,7]
[388360594,1759122641896,-212.927782,0.00027386,7]
[388360595,1759122641905,-212.92778,0.00027386,7]
[388360596,1759122641914,-201.690415,0.00027386,7]
[388360597,1759122641923,-201.690416,0.00027386,7]
[388360598,1759122641933,-5199.62065364,0.00027387,2]
[388360599,1759122641942,-222.87936159,0.00027387,7]
[388360600,1759122641951,-151.0,0.00027387,7]
[388360601,1759122641961,-151.0,0.00027387,7]
[388360602,1759122641971,-151.0,0.00027387,7]
[388360603,1759122641981,-151.0,0.00027387,7]
[388360604,1759122641990,-151.0,0.00027387,7]
[388360605,1759122641999,-151.0,0.00027387,7]
[388360606,1759122642008,-151.0,0.00027387,7]
[388360607,1759122642018,-151.0,0.00027387,7]
[388360608,1759122642027,-207.972151,0.00027387,7]
[388360609,1759122642036,-207.972151,0.00027387,7]
[388360610,1759122642045,-207.972151,0.00027387,7]
[388360611,1759122642054,-207.972151,0.00027387,7]
[388360612,1759122642064,-207.972151,0.00027387,7]
[388360613,1759122642074,-207.972151,0.00027387,7]
[388360614,1759122642083,-207.972151,0.00027387,7]
[388360615,1759122642092,-207.972151,0.00027387,7]
[388360616,1759122642101,-153.655663,0.00027387,7]
[388360617,1759122642111,-151.0,0.00027387,7]
[388360618,1759122642120,-151.0,0.00027387,7]
[388360619,1759122642129,-3032.4,0.00027396,2]
[388360620,1759122642139,-4000.0,0.00027396,2]
[388360621,1759122642148,-200.0,0.00027396,2]
[388360622,1759122642157,-151.0,0.00027396,7]
[388360623,1759122642167,-151.0,0.00027396,7]
[388360624,1759122642176,-200.0,0.00027396,2]
[388360625,1759122642185,-480.0,0.00027397,7]
[388360626,1759122642194,-480.0,0.00027397,7]
[388360627,1759122642203,-480.0,0.00027397,7]
[388360628,1759122642213,-480.0,0.00027397,7]
[388360629,1759122642222,-480.0,0.00027397,7]
[388360630,1759122642232,-480.0,0.00027397,7]
[388360631,1759122642241,-480.0,0.00027397,7]
[388360632,1759122642250,-737.54,0.00027397,7]
[388360633,1759122642259,-480.0,0.00027397,7]
[388360634,1759122642268,-480.0,0.00027397,7]
[388360635,1759122642277,-480.0,0.00027397,7]
[388360636,1759122642286,-552.24129499,0.00027397,7]
[388360637,1759122642296,-480.0,0.00027397,7]
[388360638,1759122642305,-480.0,0.00027397,7]
[388360639,1759122642315,-480.0,0.00027397,7]
[388360640,1759122642325,-480.0,0.00027397,7]
[388360641,1759122642338,-480.0,0.00027397,7]
[388360642,1759122642348,-778.82,0.00027397,7]
[388360643,1759122642357,-746.37,0.00027397,7]
[388360644,1759122642366,-480.0,0.00027397,7]
[388360645,1759122642375,-480.0,0.00027397,7]
[388360646,1759122642384,-480.0,0.00027397,7]
[388360647,1759122642394,-480.0,0.00027397,7]
[388360648,1759122642403,-480.0,0.00027397,7]
[388360649,1759122642412,-524.48341944,0.00027397,7]
[388360650,1759122642421,-480.0,0.00027397,7]
[388360651,1759122642430,-477.67383124,0.00027397,7]
[388360652,1759122642439,-480.0,0.00027397,7]
[388360653,1759122642448,-480.0,0.00027397,7]
[388360654,1759122642457,-477.91091285,0.00027397,7]
[388360655,1759122642466,-233.87608454,0.00027397,7]
[388360656,1759122642480,-480.0,0.00027397,7]
[388360657,1759122642489,-480.0,0.00027397,7]
[388360658,1759122642498,-581.68,0.00027397,7]
[388360659,1759122642508,-480.0,0.00027397,7]
[388360660,1759122642517,-480.0,0.00027397,7]
[388360661,1759122642526,-509.63424459,0.00027397,7]
[388360662,1759122642535,-480.54,0.00027397,7]
[388360663,1759122642544,-542.75,0.00027397,7]
[388360664,1759122642553,-1012.86,0.00027397,7]
[388360665,1759122642562,-482.25393551,0.00027397,7]
[388360666,1759122642571,-480.0,0.00027397,7]
[388360667,1759122642580,-480.0,0.00027397,7]
[388360668,1759122642589,-480.0,0.00027397,7]
[388360669,1759122642598,-806.49,0.00027397,7]
[388360670,1759122642607,-1192.4,0.00027397,7]
[388360671,1759122642617,-515.31,0.00027397,7]
[388360672,1759122642627,-921.12,0.00027397,7]
[388360673,1759122642637,-480.0,0.00027397,7]
[388360674,1759122642646,-480.0,0.00027397,7]
[388360675,1759122642655,-752.48,0.00027397,7]
[388360676,1759122642664,-265.18333367,0.00027397,7]
[388360677,1759122642674,-647.85,0.00027397,7]
[388360678,1759122642683,-480.0,0.00027397,7]
[388360679,1759122642692,-480.0,0.00027397,7]
[388360680,1759122642702,-480.0,0.00027397,7]
[388360681,1759122642711,-480.0,0.00027397,7]
[388360682,1759122642722,-246.59979403,0.00027397,7]
[388360683,1759122642732,-480.0,0.00027397,7]
[388360684,1759122642741,-480.0,0.00027397,7]
[388360685,1759122642750,-532.31,0.00027397,7]
[388360686,1759122642760,-510.13,0.00027397,7]
[388360687,1759122642769,-480.0,0.00027397,7]
[388360688,1759122642779,-400.0,0.00027397,7]
[388360689,1759122642789,-480.0,0.00027397,7]
[388360690,1759122642798,-480.0,0.00027397,7]
[388360691,1759122642808,-480.0,0.00027397,7]
[388360692,1759122642817,-480.0,0.00027397,7]
[388360693,1759122642827,-480.0,0.00027397,7]
[388360694,1759122642837,-537.11,0.00027397,7]
[388360695,1759122642846,-480.0,0.00027397,7]
[388360696,1759122642856,-480.0,0.00027397,7]
[388360697,1759122642865,-606.6,0.00027397,7]
[388360698,1759122642875,-705.11,0.00027397,7]
[388360699,1759122642884,-825.07,0.00027397,7]
[388360700,1759122642893,-480.0,0.00027397,7]
[388360701,1759122642903,-480.0,0.00027397,7]
[388360702,1759122642912,-575.44,0.00027397,7]
[388360703,1759122642922,-480.0,0.00027397,7]
[388360704,1759122642932,-480.0,0.00027397,7]
[388360705,1759122642941,-480.0,0.00027397,7]
[388360706,1759122642951,-480.0,0.00027397,7]
[388360707,1759122642961,-480.0,0.00027397,7]
[388360708,1759122642971,-672.95,0.00027397,7]
[388360709,1759122642980,-480.0,0.00027397,7]
[388360710,1759122642991,-505.679891,0.00027397,7]
[388360711,1759122643000,-559.59367801,0.00027397,7]
[388360712,1759122643009,-480.0,0.00027397,7]
[388360713,1759122643019,-480.0,0.00027397,7]
[388360714,1759122643029,-480.0,0.00027397,7]
[388360715,1759122643039,-635.68,0.00027397,7]
[388360716,1759122643048,-480.0,0.00027397,7]
[388360717,1759122643058,-480.0,0.00027397,7]
[388360718,1759122643068,-621.62545626,0.00027397,3]
[388360719,1759122643078,-770.66,0.00027397,7]
[388360720,1759122643087,-480.0,0.00027397,7]
[388360721,1759122643098,-1525.75,0.00027397,7]
[388360722,1759122643108,-480.0,0.00027397,7]
[388360724,1759122643119,-480.0,0.00027397,7]
[388360726,1759122643129,-783.84,0.00027397,7]
[388360728,1759122643140,-594.1,0.00027397,7]
[388360730,1759122643150,-585.64,0.00027397,7]
[388360731,1759122643160,-1184.37,0.00027397,7]
[388360732,1759122643170,-406.98017044,0.00027397,7]
[388360733,1759122643180,-596.72,0.00027397,7]
[388360734,1759122643191,-480.0,0.00027397,7]
[388360735,1759122643201,-480.0,0.00027397,7]
[388360736,1759122643211,-480.0,0.00027397,7]
[388360737,1759122643220,-979.09,0.00027397,7]
[388360738,1759122643231,-480.0,0.00027397,7]
[388360739,1759122643241,-481.09384653,0.00027397,7]
[388360740,1759122643251,-480.0,0.00027397,7]
[388360741,1759122643261,-480.0,0.00027397,7]
[388360742,1759122643271,-480.0,0.00027397,7]
[388360743,1759122643281,-480.0,0.00027397,7]
[388360745,1759122643291,-480.0,0.00027397,7]
[388360747,1759122643302,-480.0,0.00027397,7]
[388360749,1759122643312,-482.09343102,0.00027397,7]
[388360751,1759122643321,-480.0,0.00027397,7]
[388360753,1759122643331,-480.0,0.00027397,7]
[388360755,1759122643340,-480.0,0.00027397,7]
[388360757,1759122643349,-749.65,0.00027397,7]
[388360759,1759122643359,-1315.29,0.00027397,7]
[388360760,1759122643368,-665.01,0.00027397,7]
[388360762,1759122643378,-480.0,0.00027397,7]
[388360764,1759122643387,-480.0,0.00027397,7]
[388360766,1759122643397,-612.93557742,0.00027397,7]
[388360767,1759122643407,-480.0,0.00027397,7]
[388360768,1759122643416,-733.66,0.00027397,7]
[388360769,1759122643426,-549.83,0.00027397,7]
[388360770,1759122643435,-480.0,0.00027397,7]
[388360771,1759122643445,-480.0,0.00027397,7]
[388360772,1759122643455,-790.46,0.00027397,7]
[388360773,1759122643464,-480.0,0.00027397,7]
[388360774,1759122643479,-480.0,0.00027397,7]
[388360775,1759122643489,-978.62,0.00027397,7]
[388360776,1759122643498,-875.04,0.00027397,7]
[388360777,1759122643508,-632.29,0.00027397,7]
[388360778,1759122643519,-480.0,0.00027397,7]
[388360779,1759122643529,-480.0,0.00027397,7]
[388360780,1759122643539,-480.0,0.00027397,7]
[388360781,1759122643548,-480.0,0.00027397,7]
[388360782,1759122643557,-600.54,0.00027397,7]
[388360783,1759122643567,-480.0,0.00027397,7]
[388360784,1759122643576,-485.63,0.00027397,7]
[388360785,1759122643586,-480.0,0.00027397,7]
[388360786,1759122643595,-1310.53,0.00027397,7]
[388360787,1759122643604,-480.0,0.00027397,7]
[388360788,1759122643614,-480.0,0.00027397,7]
[388360789,1759122643624,-480.0,0.00027397,7]
[388360790,1759122643633,-714.17,0.00027397,7]
[388360791,1759122643642,-953.34,0.00027397,7]
[388360792,1759122643651,-480.0,0.00027397,7]
[388360793,1759122643661,-840.11,0.00027397,7]
[388360794,1759122643670,-480.0,0.00027397,7]
[388360795,1759122643680,-480.0,0.00027397,7]
[388360796,1759122643690,-480.0,0.00027397,7]
[388360797,1759122643699,-805.59,0.00027397,7]
[388360798,1759122643709,-480.0,0.00027397,7]
[388360799,1759122643718,-480.0,0.00027397,7]
[388360800,1759122643728,-2146.46,0.00027397,7]
[388360801,1759122643738,-690.72,0.00027397,7]
[388360802,1759122643747,-480.0,0.00027397,7]
[388360804,1759122643757,-480.0,0.00027397,7]
[388360805,1759122643766,-480.0,0.00027397,7]
[388360806,1759122643776,-696.56,0.00027397,7]
[388360807,1759122643786,-480.0,0.00027397,7]
[388360808,1759122643795,-701.25,0.00027397,7]
[388360809,1759122643804,-480.0,0.00027397,7]
[388360810,1759122643813,-756.38,0.00027397,7]
[388360811,1759122643822,-480.0,0.00027397,7]
[388360812,1759122643833,-1035.96,0.00027397,7]
[388360813,1759122643842,-480.0,0.00027397,7]
[388360814,1759122643852,-800.43,0.00027397,7]
[388360815,1759122643861,-556.97,0.00027397,7]
[388360816,1759122643870,-480.0,0.00027397,7]
[388360817,1759122643879,-821.56,0.00027397,7]
[388360818,1759122643889,-507.66,0.00027397,7]
[388360819,1759122643898,-712.04,0.00027397,7]
[388360820,1759122643907,-480.0,0.00027397,7]
[388360821,1759122643917,-480.0,0.00027397,7]
[388360822,1759122643926,-480.0,0.00027397,7]
[388360823,1759122643936,-480.0,0.00027397,7]
[388360824,1759122643946,-480.0,0.00027397,7]
[388360825,1759122643956,-480.0,0.00027397,7]
[388360826,1759122643966,-480.0,0.00027397,7]
[388360827,1759122643977,-490.33,0.00027397,7]
[388360828,1759122643989,-914.72,0.00027397,7]
[388360829,1759122643999,-480.0,0.00027397,7]
[388360830,1759122644009,-984.59,0.00027397,7]
[388360831,1759122644018,-480.0,0.00027397,7]
[388360832,1759122644028,-480.0,0.00027397,7]
[388360833,1759122644038,-547.97,0.00027397,7]
[388360834,1759122644047,-1617.7,0.00027397,7]
[388360835,1759122644058,-480.0,0.00027397,7]
[388360836,1759122644067,-480.0,0.00027397,7]
[388360837,1759122644077,-480.0,0.00027397,7]
[388360838,1759122644087,-869.55,0.00027397,7]
[388360839,1759122644097,-480.0,0.00027397,7]
[388360840,1759122644106,-502.17090724,0.00027397,7]
[388360841,1759122644117,-480.0,0.00027397,7]
[388360842,1759122644126,-480.0,0.00027397,7]
[388360843,1759122644136,-480.0,0.00027397,7]
[388360844,1759122644146,-500.0,0.00027397,7]
[388360845,1759122644156,-536.72811761,0.00027397,7]
[388360846,1759122644167,-480.0,0.00027397,7]
[388360847,1759122644177,-480.0,0.00027397,7]
[388360848,1759122644187,-976.1,0.00027397,7]
[388360849,1759122644197,-480.0,0.00027397,7]
[388360850,1759122644207,-480.0,0.00027397,7]
[388360851,1759122644217,-480.0,0.00027397,7]
[388360852,1759122644227,-621.9,0.00027397,7]
[388360853,1759122644238,-480.0,0.00027397,7]
[388360854,1759122644247,-1178.49,0.00027397,7]
[388360855,1759122644257,-480.0,0.00027397,7]
[388360856,1759122644267,-1964.63,0.00027397,7]
[388360857,1759122644276,-800.56,0.00027397,7]
[388360858,1759122644286,-480.0,0.00027397,7]
[388360859,1759122644296,-480.0,0.00027397,7]
[388360860,1759122644306,-480.0,0.00027397,7]
[388360861,1759122644316,-480.0,0.00027397,7]
[388360862,1759122644326,-548.24,0.00027397,7]
[388360863,1759122644335,-480.0,0.00027397,7]
[388360864,1759122644345,-480.0,0.00027397,7]
[388360865,1759122644355,-480.0,0.00027397,7]
[388360866,1759122644365,-492.98,0.00027397,7]
[388360867,1759122644375,-480.0,0.00027397,7]
[388360868,1759122644385,-480.0,0.00027397,7]
[388360869,1759122644396,-525.53,0.00027397,7]
[388360870,1759122644405,-480.0,0.00027397,7]
[388360871,1759122644415,-480.0,0.00027397,7]
[388360872,1759122644424,-480.0,0.00027397,7]
[388360873,1759122644434,-480.0,0.00027397,7]
[388360874,1759122644444,-480.0,0.00027397,7]
[388360875,1759122644454,-522.93,0.00027397,7]
[388360876,1759122644464,-480.0,0.00027397,7]
[388360877,1759122644476,-830.0,0.00027397,7]
[388360878,1759122644487,-480.0,0.00027397,7]
[388360879,1759122644496,-480.0,0.00027397,7]
[388360880,1759122644506,-936.42,0.00027397,7]
[388360881,1759122644515,-480.0,0.00027397,7]
[388360882,1759122644525,-480.0,0.00027397,7]
[388360883,1759122644534,-895.08,0.00027397,7]
[388360884,1759122644544,-480.0,0.00027397,7]
[388360885,1759122644554,-780.49,0.00027397,7]
[388360886,1759122644565,-480.0,0.00027397,7]
[388360887,1759122644574,-540.29,0.00027397,7]
[388360888,1759122644584,-410.55409294,0.00027397,7]
[388360889,1759122644594,-220.83,0.00027397,7]
[388360890,1759122644603,-1993.37,0.00027397,7]
[388360891,1759122644612,-480.0,0.00027397,7]
[388360892,1759122644622,-2437.09,0.00027397,7]
[388360893,1759122644632,-725.64,0.00027397,7]
[388360894,1759122644642,-786.66,0.00027397,7]
[388360895,1759122644652,-480.0,0.00027397,7]
[388360896,1759122644662,-480.0,0.00027397,7]
[388360897,1759122644672,-717.63,0.00027397,7]
[388360898,1759122644682,-782.97,0.00027397,7]
[388360899,1759122644692,-828.11,0.00027397,7]
[388360900,1759122644702,-480.0,0.00027397,7]
[388360901,1759122644712,-500.0,0.00027397,7]
[388360902,1759122644722,-893.2,0.00027397,7]
[388360903,1759122644734,-480.0,0.00027397,7]
[388360904,1759122644744,-480.0,0.00027397,7]
[388360905,1759122644755,-656.88,0.00027397,7]
[388360906,1759122644765,-838.52,0.00027397,7]
[388360907,1759122644775,-480.0,0.00027397,7]
[388360908,1759122644947,-515.86,0.00027397,7]
[388360909,1759122644968,-893.61,0.00027397,7]
[388360910,1759122644978,-678.71,0.00027397,7]
[388360911,1759122644988,-480.0,0.00027397,7]